fUSD/lending_fUSD_20260401
["ID","MTS","AMOUNT","RATE_DAILY","PERIOD"]
[419225622,1775025050518,-525.0,0.00026,2]
[419225623,1775025050528,-1115.0,0.00026021,2]
[419225624,1775025050538,-232.12,0.00026146,30]
[419225625,1775025050548,-200.02,0.00026158,4]
[419225626,1775025050558,-657.0,0.00026275,2]
[419225627,1775025050567,-500.0,0.00026438,2]
[419225628,1775025050576,-150.0,0.000266,4]
[419225629,1775025050586,-200.02,0.00026711,4]
[419225630,1775025050596,-800.0,0.00026986,120]
[419225631,1775025050606,-800.0,0.00026986,120]
[419225632,1775025050615,-426.08733496,0.00027,2]
[419225633,1775025050624,-2000.0,0.00027,2]
[419225634,1775025050633,-894.0,0.00027,2]
[419225635,1775025050642,-1276.32774423,0.00027,2]
[419225636,1775025050651,-4398.67305915,0.00027,2]
[419225637,1775025050661,-1225.62658029,0.00027,2]
[419225638,1775025050670,-540.2014381,0.00027,2]
[419225639,1775025050680,-150.0,0.00027185,2]
[419225640,1775025050689,-200.02,0.00027263,4]
[419225641,1775025050698,-150.0,0.000273,4]
[419225642,1775025050707,-285.40491141,0.000273,30]
[419225643,1775025050716,-1115.0,0.00027322,2]
[419225644,1775025050726,-825.0,0.0002733,60]
[419225645,1775025050735,-156.74,0.00027397,2]
[419225646,1775025050744,-450.66053804,0.00027397,2]
[419225647,1775025050753,-1000.0,0.00027397,120]
[419225648,1775025050762,-1000.0,0.00027397,20]
[419225649,1775025050772,-432.594449,0.00027397,2]
[419225650,1775025050782,-432.594449,0.00027397,2]
[419225651,1775025050791,-432.594449,0.00027397,2]
[419225652,1775025050800,-432.594449,0.00027397,2]
[419225653,1775025050809,-323.37602213,0.00027397,2]
[419225654,1775025050818,-11351.37,0.00027397,10]
[419225655,1775025050828,-9459.47,0.00027397,10]
[419225656,1775025050837,-3822.2586,0.000275,67]
[419225657,1775025050848,-180.02150181,0.00027516,2]
[419225658,1775025050857,-250.0,0.00027814,10]
[419225659,1775025050866,-200.02,0.00027816,4]
[419225660,1775025050875,-150.0,0.00028,4]
[419225661,1775025050884,-150.0,0.00028,4]
[419225662,1775025050894,-200.02,0.00028368,4]
[419225663,1775025050904,-668.65185757,0.00028422,2]
[419225664,1775025050914,-500.0,0.00028493,60]
[419225665,1775025050923,-500.0,0.00028493,60]
[419225666,1775025050932,-500.0,0.00028493,60]
[419225667,1775025050942,-220.96690893,0.00028493,60]
[419225668,1775025050953,-500.0,0.00028493,60]
[419225669,1775025050963,-233.58894836,0.00028493,60]
[419225670,1775025050973,-500.0,0.00028493,60]
[419225671,1775025050982,-500.0,0.00028493,60]
[419225672,1775025050991,-500.0,0.00028493,60]
[419225673,1775025051000,-500.0,0.00028493,60]
[419225674,1775025051009,-500.0,0.00028493,60]
[419225675,1775025051019,-500.0,0.00028493,60]
[419225676,1775025051028,-500.0,0.00028493,60]
[419225677,1775025051037,-500.0,0.00028493,60]
[419225678,1775025051047,-500.0,0.00028493,60]
[419225679,1775025051056,-363.12381504,0.00028493,60]
[419225680,1775025051065,-500.0,0.00028493,60]
[419225681,1775025051073,-500.0,0.00028493,60]
[419225682,1775025051082,-626.71602316,0.00028493,60]
[419225683,1775025051091,-150.0,0.00028493,60]
[419225684,1775025051100,-207.81624386,0.00028493,60]
[419225685,1775025051109,-500.0,0.00028493,21]
[419225686,1775025051118,-500.0,0.00028493,21]
[419225687,1775025051127,-500.0,0.00028493,21]
[419225688,1775025051136,-500.0,0.00028493,21]
[419225689,1775025051146,-500.0,0.00028493,21]
[419225690,1775025051155,-500.0,0.00028493,21]
[419225691,1775025051164,-500.0,0.00028493,21]
[419225692,1775025051174,-500.0,0.00028493,21]
[419225693,1775025051183,-500.0,0.00028493,21]
[419225694,1775025051193,-150.0,0.00028493,60]
[419225695,1775025051203,-500.0,0.00028493,21]
[419225696,1775025051213,-150.0,0.00028493,60]
[419225697,1775025051223,-500.0,0.00028493,21]
[419225698,1775025051233,-150.0,0.00028493,60]
[419225699,1775025051242,-500.0,0.00028493,21]
[419225700,1775025051252,-396.68097798,0.00028493,21]
[419225701,1775025051261,-285.29652053,0.00028493,60]
[419225702,1775025051270,-500.0,0.00028493,60]
[419225703,1775025051281,-500.0,0.00028493,60]
[419225704,1775025051290,-500.0,0.00028493,60]
[419225705,1775025051299,-500.0,0.00028493,60]
[419225706,1775025051308,-500.0,0.00028493,60]
[419225707,1775025051318,-500.0,0.00028493,60]
[419225708,1775025051327,-500.0,0.00028493,60]
[419225709,1775025051336,-500.0,0.00028493,60]
[419225710,1775025051346,-500.0,0.00028493,60]
[419225711,1775025051355,-500.0,0.00028493,60]
[419225712,1775025051364,-500.0,0.00028493,60]
[419225713,1775025051374,-500.0,0.00028493,60]
[419225714,1775025051383,-436.48877466,0.00028493,60]
[419225715,1775025051393,-500.0,0.00028493,60]
[419225716,1775025051402,-500.0,0.00028493,60]
[419225717,1775025051412,-500.0,0.00028493,60]
[419225718,1775025051423,-500.0,0.00028493,60]
[419225719,1775025051432,-500.0,0.00028493,60]
[419225720,1775025051442,-500.0,0.00028493,60]
[419225721,1775025051452,-500.0,0.00028493,60]
[419225722,1775025051462,-508.88121175,0.00028493,60]
[419225723,1775025051472,-150.0,0.00028544,2]
[419225724,1775025051482,-505.0,0.00028547,15]
[419225725,1775025051491,-150.0,0.000287,4]
[419225726,1775025051501,-657.0,0.00028734,2]
[419225727,1775025051509,-500.0,0.00028767,120]
[419225728,1775025051519,-500.0,0.00028767,120]
[419225729,1775025051528,-500.0,0.00028767,120]
[419225730,1775025051537,-500.0,0.00028767,120]
[419225731,1775025051547,-500.0,0.00028767,120]
[419225732,1775025051558,-500.0,0.00028767,120]
[419225733,1775025051568,-204.78266092,0.00028767,120]
[419225734,1775025051578,-4903.3344,0.000289,72]
[419225735,1775025051588,-200.02,0.00028921,4]
[419225736,1775025051598,-1444.0,0.00029041,120]
[419225737,1775025051607,-150.0,0.000294,4]
[419225738,1775025051617,-79644.0,0.000294,2]
[419225739,1775025051627,-200.02,0.00029474,4]
[419225740,1775025051636,-150.0,0.0002975,4]
[419225741,1775025051646,-2968.75711,0.0002975,7]
[419225742,1775025051656,-2968.75711,0.0002975,7]
[419225743,1775025051665,-2968.75711,0.0002975,7]
[419225744,1775025051675,-2968.75711,0.0002975,7]
[419225745,1775025051684,-825.0,0.00029773,60]
[419225746,1775025051694,-1173.0,0.00029833,5]
[419225747,1775025051704,-736.0,0.00029833,5]
[419225748,1775025051713,-150.0,0.00029971,2]
[419225749,1775025051723,-160.0,0.0003,7]
[419225750,1775025051733,-363.51560483,0.0003,30]
[419225751,1775025051863,-200.0,0.0003,3]
[419225752,1775025051873,-500.0,0.0003,2]
[419225753,1775025051883,-1014.55,0.0003,30]
[419225754,1775025051893,-200.02,0.00030026,4]
[419225755,1775025051903,-1400.0,0.00030038,2]
[419225756,1775025051913,-1400.0,0.00030038,2]
[419225757,1775025051923,-1295.0,0.00030038,2]
[419225758,1775025051933,-150.0,0.000301,4]
[419225759,1775025051943,-150.0,0.00030136,20]
[419225760,1775025051953,-1000.0,0.00030137,120]
[419225761,1775025051962,-182.688209,0.00030137,7]
[419225762,1775025051972,-182.688209,0.00030137,7]
[419225763,1775025051982,-182.688209,0.00030137,7]
[419225764,1775025051992,-182.688209,0.00030137,7]
[419225765,1775025052002,-150.68680903,0.000302,30]
[419225766,1775025052011,-5534.0,0.000302,3]
[419225767,1775025052021,-1351.985,0.00030262,2]
[419225768,1775025052031,-232.12,0.00030292,60]
[419225769,1775025052041,-1014.55,0.00030326,30]
[419225770,1775025052052,-30000.0,0.00030387,30]
[419225771,1775025052063,-151.0,0.00030387,7]
[419225772,1775025052073,-151.0,0.00030387,7]
[419225773,1775025052083,-238.189491,0.00030387,7]
[419225774,1775025052093,-6290.1784,0.000304,77]
[419225775,1775025052103,-200.02,0.00030579,4]
[419225776,1775025052112,-1014.55,0.00030652,30]
[419225777,1775025052122,-228.95384873,0.00030685,2]
[419225778,1775025052132,-2000.0,0.000307,2]
[419225779,1775025052143,-150.0,0.000308,4]
[419225780,1775025052153,-1014.55,0.00030978,30]
[419225781,1775025052162,-5534.0,0.00031,5]
[419225782,1775025052172,-151.0,0.00031047,7]
[419225783,1775025052182,-505.0,0.0003112,17]
[419225784,1775025052192,-200.02,0.00031132,4]
[419225785,1775025052202,-437.70802113,0.00031161,2]
[419225786,1775025052211,-657.0,0.00031193,2]
[419225787,1775025052221,-1014.55,0.00031304,30]
[419225788,1775025052230,-162.0,0.000314,3]
[419225789,1775025052240,-1571.0,0.000314,3]
[419225790,1775025052249,-150.0,0.0003147,2]
[419225791,1775025052258,-150.0,0.000315,4]
[419225792,1775025052268,-150.0,0.000315,4]
[419225793,1775025052277,-1014.55,0.0003163,30]
[419225794,1775025052287,-200.02,0.00031684,4]
[419225795,1775025052296,-2809.0,0.0003172,3]
[419225796,1775025052306,-2809.0,0.0003172,3]
[419225797,1775025052315,-151.0,0.0003172,7]
[419225798,1775025052326,-151.0,0.0003172,7]
[419225799,1775025052336,-533.776339,0.0003172,7]
[419225800,1775025052345,-151.0,0.0003172,7]
[419225801,1775025052356,-533.776339,0.0003172,7]
[419225802,1775025052366,-533.776339,0.0003172,7]
[419225803,1775025052375,-533.776339,0.0003172,7]
[419225804,1775025052385,-151.0,0.0003172,7]
[419225805,1775025052395,-772.867152,0.0003172,7]
[419225806,1775025052404,-772.867152,0.0003172,7]
[419225807,1775025052415,-772.867152,0.0003172,7]
[419225808,1775025052424,-772.867152,0.0003172,7]
[419225809,1775025052434,-8069.273,0.000318,82]
[419225810,1775025052443,-250.0,0.00031879,21]
[419225811,1775025052453,-1014.55,0.00031957,30]
[419225812,1775025052462,-403.10901148,0.00032,120]
[419225813,1775025052472,-160.0,0.00032,3]
[419225814,1775025052481,-184.6398266,0.00032,120]
[419225815,1775025052491,-616.22870763,0.00032,120]
[419225816,1775025052501,-268.17305255,0.00032,120]
[419225817,1775025052511,-1490.70499641,0.00032,120]
[419225818,1775025052520,-506.36666556,0.00032,120]
[419225819,1775025052531,-429.65546234,0.00032,120]
[419225820,1775025052541,-223.9430648,0.00032,120]
[419225821,1775025052550,-179.7765907,0.00032,120]
[419225822,1775025052560,-2809.0,0.0003204,3]
[419225823,1775025052570,-150.0,0.000322,4]
[419225824,1775025052579,-151.0,0.00032216,7]
[419225825,1775025052589,-151.0,0.00032216,7]
[419225826,1775025052598,-825.0,0.00032216,60]
[419225827,1775025052608,-363.51560483,0.00032222,30]
[419225828,1775025052618,-200.02,0.00032237,4]
[419225829,1775025052628,-1014.55,0.00032283,120]
[419225830,1775025052638,-374.99530866,0.00032329,7]
[419225831,1775025052648,-2809.0,0.0003236,11]
[419225832,1775025052657,-162.0,0.0003236,11]
[419225833,1775025052668,-1500.0,0.0003248,2]
[419225834,1775025052678,-1500.0,0.0003248,2]
[419225835,1775025052687,-1448.0,0.0003248,2]
[419225836,1775025052697,-1571.0,0.00032481,11]
[419225837,1775025052707,-1400.0,0.000326,2]
[419225838,1775025052716,-1400.0,0.000326,2]
[419225839,1775025052726,-1340.0,0.000326,2]
[419225840,1775025052735,-1014.55,0.00032609,120]
[419225841,1775025052745,-1263.0,0.00032699,2]
[419225842,1775025052754,-150.351,0.00032699,2]
[419225843,1775025052764,-1229.472,0.00032699,2]
[419225844,1775025052773,-933.398,0.00032699,2]
[419225845,1775025052784,-284.09056544,0.000327,2]
[419225846,1775025052794,-284.0905653,0.000327,2]
[419225847,1775025052804,-284.0905653,0.000327,2]
[419225848,1775025052814,-284.0905653,0.000327,2]
[419225849,1775025052823,-284.0905653,0.000327,2]
[419225850,1775025052833,-284.0905653,0.000327,2]
[419225851,1775025052843,-284.0905653,0.000327,2]
[419225852,1775025052852,-284.0905653,0.000327,2]
[419225853,1775025052861,-284.0905653,0.000327,2]
[419225854,1775025052871,-284.0905653,0.000327,2]
[419225855,1775025052880,-284.0905653,0.000327,2]
[419225856,1775025052891,-284.0905653,0.000327,2]
[419225857,1775025052900,-284.0905653,0.000327,2]
[419225858,1775025052910,-284.0905653,0.000327,2]
[419225859,1775025052919,-284.0905653,0.000327,2]
[419225860,1775025052929,-284.0905653,0.000327,2]
[419225861,1775025052938,-284.0905653,0.000327,2]
[419225862,1775025052948,-284.0905653,0.000327,2]
[419225863,1775025052957,-284.0905653,0.000327,2]
[419225864,1775025052966,-284.0905653,0.000327,2]
[419225865,1775025052976,-200.02,0.00032789,4]
[419225866,1775025052985,-319.0,0.00032801,11]
[419225867,1775025052995,-300.0,0.00032876,120]
[419225868,1775025053004,-300.0,0.00032876,120]
[419225869,1775025053014,-209.51487984,0.00032876,120]
[419225870,1775025053023,-1981.80648635,0.00032877,120]
[419225871,1775025053033,-3671.677389,0.00032877,7]
[419225872,1775025053042,-3671.677389,0.00032877,7]
[419225873,1775025053051,-3671.677389,0.00032877,7]
[419225874,1775025053060,-3671.677389,0.00032877,7]
[419225875,1775025053070,-196.226046,0.00032877,7]
[419225876,1775025053079,-196.226046,0.00032877,7]
[419225877,1775025053089,-196.226046,0.00032877,7]
[419225878,1775025053099,-196.226046,0.00032877,7]
[419225879,1775025053109,-511.966398,0.00032877,7]
[419225880,1775025053119,-511.966398,0.00032877,7]
[419225881,1775025053128,-511.966398,0.00032877,7]
[419225882,1775025053138,-511.966398,0.00032877,7]
[419225883,1775025053147,-151.0,0.00032877,7]
[419225884,1775025053157,-151.0,0.00032877,7]
[419225885,1775025053167,-151.0,0.00032877,7]
[419225886,1775025053177,-151.0,0.00032877,7]
[419225887,1775025053186,-342.803973,0.00032877,7]
[419225888,1775025053196,-151.0,0.00032877,7]
[419225889,1775025053206,-342.803973,0.00032877,7]
[419225890,1775025053216,-151.0,0.00032877,7]
[419225891,1775025053226,-342.803973,0.00032877,7]
[419225892,1775025053236,-151.0,0.00032877,7]
[419225893,1775025053246,-342.803973,0.00032877,7]
[419225894,1775025053256,-540.30350779,0.0003289,2]
[419225895,1775025053267,-150.0,0.000329,4]
[419225896,1775025053277,-25182.35,0.000329,2]
[419225897,1775025053288,-7730.48,0.000329,30]
[419225898,1775025053298,-9127.68,0.000329,30]
[419225899,1775025053308,-7126.81,0.000329,30]
[419225900,1775025053319,-1014.55,0.00032935,120]
[419225901,1775025053328,-1188.51483974,0.0003297,2]
[419225902,1775025053337,-762.87386502,0.0003297,2]
[419225903,1775025053347,-1243.57659104,0.00032998,30]
[419225904,1775025053356,-403.10901148,0.00033,120]
[419225905,1775025053366,-616.22870763,0.00033,120]
[419225906,1775025053376,-268.17305255,0.00033,120]
[419225907,1775025053385,-1490.70499641,0.00033,120]
[419225908,1775025053395,-506.36666556,0.00033,120]
[419225909,1775025053404,-429.65546234,0.00033,120]
[419225910,1775025053415,-160.0,0.00033,120]
[419225911,1775025053425,-160.0,0.00033,120]
[419225912,1775025053435,-200.0,0.00033,3]
[419225913,1775025053444,-172.0,0.00033,14]
[419225914,1775025053455,-150.0,0.00033043,2]
[419225915,1775025053468,-1014.55,0.00033261,120]
[419225916,1775025053478,-1346.0,0.00033262,2]
[419225917,1775025053488,-10351.5613,0.000333,87]
[419225918,1775025053500,-7126.81,0.000333,30]
[419225919,1775025053510,-200.02,0.00033342,4]
[419225920,1775025053520,-152.0,0.00033388,3]
[419225921,1775025053531,-25182.35,0.000334,2]
[419225922,1775025053541,-9127.68,0.000334,30]
[419225923,1775025053551,-282.56,0.000334,10]
[419225924,1775025053561,-151.0,0.00033411,5]
[419225925,1775025053570,-7730.48,0.000335,30]
[419225926,1775025053580,-1014.55,0.00033587,120]
[419225927,1775025053590,-984.96897858,0.00033589,120]
[419225928,1775025053599,-359.62462886,0.00033589,120]
[419225929,1775025053608,-150.0,0.000336,4]
[419225930,1775025053619,-657.0,0.00033652,2]
[419225931,1775025053629,-505.0,0.00033692,19]
[419225932,1775025053639,-7126.81,0.000337,30]
[419225933,1775025053648,-408.77,0.00033701,30]
[419225934,1775025053659,-9127.68,0.000338,30]
[419225935,1775025053669,-200.02,0.00033895,4]
[419225936,1775025053679,-403.10901148,0.000339,120]
[419225937,1775025053688,-616.22870763,0.000339,120]
[419225938,1775025053699,-268.17305255,0.000339,120]
[419225939,1775025053709,-1490.70499641,0.000339,120]
[419225940,1775025053718,-506.36666556,0.000339,120]
[419225941,1775025053728,-429.65546234,0.000339,120]
[419225942,1775025053738,-25182.35,0.000339,2]
[419225943,1775025053748,-1014.55,0.00033913,120]
[419225944,1775025053758,-2233.525,0.0003392,37]
[419225945,1775025053769,-1444.0,0.00033973,120]
[419225946,1775025053781,-7730.48,0.00034,30]
[419225947,1775025053790,-151.0,0.00034,7]
[419225948,1775025053800,-151.0,0.00034,7]
[419225949,1775025053810,-151.0,0.00034,7]
[419225950,1775025053821,-500.0,0.00034012,120]
[419225951,1775025053830,-1400.0,0.00034148,2]
[419225952,1775025053840,-1400.0,0.00034148,2]
[419225953,1775025053849,-1295.0,0.00034148,2]
[419225954,1775025053859,-1014.55,0.00034239,120]
[419225955,1775025053868,-150.0,0.000343,4]
[419225956,1775025053879,-7126.81,0.000343,30]
[419225957,1775025053888,-1106.0,0.00034324,11]
[419225958,1775025053899,-153.0,0.00034391,30]
[419225959,1775025053908,-879.0,0.00034391,30]
[419225960,1775025053917,-1271.0,0.00034391,30]
[419225961,1775025053927,-4385.0,0.00034391,30]
[419225962,1775025053936,-9127.68,0.000344,30]
[419225963,1775025053945,-2000.0,0.000344,2]
[419225964,1775025053954,-426.0,0.00034408,30]
[419225965,1775025054275,-151.0,0.00034411,5]
[419225966,1775025054300,-1219.0,0.00034437,30]
[419225967,1775025054310,-525.0,0.00034437,30]
[419225968,1775025054320,-232.12,0.00034438,60]
[419225969,1775025054330,-363.51560483,0.00034444,30]
[419225970,1775025054340,-200.02,0.00034447,4]
[419225971,1775025054350,-1014.55,0.00034565,120]
[419225972,1775025054359,-1199.20597015,0.00034599,30]
[419225973,1775025054369,-25182.35,0.000346,2]
[419225974,1775025054379,-825.0,0.0003466,90]
[419225975,1775025054388,-1000.0,0.0003467,2]
[419225976,1775025054399,-500.0,0.0003467,2]
[419225977,1775025054409,-150.0,0.00034696,2]
[419225978,1775025054419,-13279.3649,0.000347,92]
[419225979,1775025054429,-7730.48,0.000347,30]
[419225980,1775025054440,-7126.81,0.000347,30]
[419225981,1775025054451,-1500.0,0.00034795,2]
[419225982,1775025054461,-9127.68,0.000348,30]
[419225983,1775025054470,-1014.55,0.00034891,120]
[419225984,1775025054480,-1000.0,0.00034997,30]
[419225985,1775025054490,-1000.0,0.00034997,30]
[419225986,1775025054500,-1000.0,0.00034997,30]
[419225987,1775025054510,-1000.0,0.00034997,30]
[419225988,1775025054520,-1000.0,0.00034997,30]
[419225989,1775025054530,-1000.0,0.00034997,30]
[419225990,1775025054539,-1000.0,0.00034997,30]
[419225991,1775025054549,-838.11,0.00034997,30]
[419225992,1775025054559,-403.10901148,0.00035,120]
[419225993,1775025054568,-616.22870763,0.00035,120]
[419225994,1775025054578,-268.17305255,0.00035,120]
[419225995,1775025054588,-1490.70499641,0.00035,120]
[419225996,1775025054598,-506.36666556,0.00035,120]
[419225997,1775025054607,-429.65546234,0.00035,120]
[419225998,1775025054617,-150.0,0.00035,4]
[419225999,1775025054627,-200.02,0.00035,4]
[419226000,1775025054637,-150.0,0.00035,2]
[419226001,1775025054647,-163.931,0.00035,2]
[419226002,1775025054657,-150.0,0.00035,4]
[419226003,1775025054667,-150.0,0.00035,4]
[419226004,1775025054676,-10000.0,0.00035,120]
[419226005,1775025054686,-159.21,0.00035,120]
[419226006,1775025054696,-963.31646,0.00035,30]
[419226007,1775025054706,-501.0,0.00035,2]
[419226008,1775025054716,-250.0,0.00035045,37]
[419226009,1775025054725,-638.169603,0.00035196,120]
[419226010,1775025054735,-419.5444966,0.00035196,120]
[419226011,1775025054744,-426.0473432,0.00035196,120]
[419226012,1775025054754,-500.0,0.00035196,120]
[419226013,1775025054764,-575.4085544,0.00035196,120]
[419226014,1775025054773,-187.5,0.00035196,120]
[419226015,1775025054783,-754.9043352,0.00035196,120]
[419226016,1775025054793,-575.6869423,0.00035196,120]
[419226017,1775025054804,-237.2947061,0.00035196,120]
[419226018,1775025054814,-1300.0,0.00035196,120]
[419226019,1775025054824,-1300.0,0.00035196,120]
[419226020,1775025054833,-1300.0,0.00035196,120]
[419226021,1775025054844,-1300.0,0.00035196,120]
[419226022,1775025054855,-1300.0,0.00035196,120]
[419226023,1775025054865,-1300.0,0.00035196,120]
[419226024,1775025054875,-1300.0,0.00035196,120]
[419226025,1775025054884,-1300.0,0.00035196,120]
[419226026,1775025054894,-1300.0,0.00035196,120]
[419226027,1775025054904,-1300.0,0.00035196,120]
[419226028,1775025054914,-1300.0,0.00035196,120]
[419226029,1775025054923,-1300.0,0.00035196,120]
[419226030,1775025054933,-1300.0,0.00035196,120]
[419226031,1775025054942,-1300.0,0.00035196,120]
[419226032,1775025054952,-1300.0,0.00035196,120]
[419226033,1775025054961,-1300.0,0.00035196,120]
[419226034,1775025054971,-1300.0,0.00035196,120]
[419226035,1775025054980,-1300.0,0.00035196,120]
[419226036,1775025054990,-1300.0,0.00035196,120]
[419226037,1775025055000,-1300.0,0.00035196,120]
[419226038,1775025055011,-1300.0,0.00035196,120]
[419226039,1775025055020,-1300.0,0.00035196,120]
[419226040,1775025055030,-1300.0,0.00035196,120]
[419226041,1775025055041,-1300.0,0.00035196,120]
[419226042,1775025055051,-1300.0,0.00035196,120]
[419226043,1775025055060,-1300.0,0.00035196,120]
[419226044,1775025055071,-1300.0,0.00035196,120]
[419226045,1775025055081,-2197.7323018,0.00035196,120]
[419226046,1775025055091,-963.31646,0.000352,30]
[419226047,1775025055101,-1014.55,0.00035217,120]
[419226048,1775025055111,-15621.26015249,0.00035281,7]
[419226049,1775025055121,-72946.79345668,0.00035281,7]
[419226050,1775025055136,-25182.35,0.000353,2]
[419226051,1775025055146,-7126.81,0.000353,30]
[419226052,1775025055156,-153.0,0.00035391,30]
[419226053,1775025055167,-879.0,0.00035391,30]
[419226054,1775025055178,-1271.0,0.00035391,30]
[419226055,1775025055188,-4385.0,0.00035391,30]
[419226056,1775025055199,-7730.48,0.000354,30]
[419226057,1775025055209,-9127.68,0.000354,30]
[419226058,1775025055219,-963.31646,0.000354,30]
[419226059,1775025055229,-426.0,0.00035408,30]
[419226060,1775025055239,-151.0,0.00035411,5]
[419226061,1775025055250,-1219.0,0.00035437,30]
[419226062,1775025055260,-525.0,0.00035437,30]
[419226063,1775025055270,-2161.0,0.000355,7]
[419226064,1775025055281,-2809.0,0.00035526,11]
[419226065,1775025055291,-1014.55,0.00035543,120]
[419226066,1775025055301,-308.96526049,0.00035589,120]
[419226067,1775025055311,-963.31646,0.000356,30]
[419226068,1775025055321,-151.0,0.00035613,14]
[419226069,1775025055332,-350.0,0.00035616,120]
[419226070,1775025055342,-4678.0,0.00035616,120]
[419226071,1775025055352,-1000.0,0.00035616,10]
[419226072,1775025055362,-1000.0,0.00035616,10]
[419226073,1775025055372,-1000.0,0.00035616,10]
[419226074,1775025055383,-1000.0,0.00035616,10]
[419226075,1775025055392,-1000.0,0.00035616,10]
[419226076,1775025055402,-1000.0,0.00035616,10]
[419226077,1775025055412,-1000.0,0.00035616,10]
[419226078,1775025055422,-1000.0,0.00035616,10]
[419226079,1775025055433,-1000.0,0.00035616,10]
[419226080,1775025055443,-1000.0,0.00035616,10]
[419226081,1775025055453,-1000.0,0.00035616,10]
[419226082,1775025055462,-1000.0,0.00035616,10]
[419226083,1775025055472,-1000.0,0.00035616,10]
[419226084,1775025055482,-1000.0,0.00035616,10]
[419226085,1775025055492,-1000.0,0.00035616,10]
[419226086,1775025055503,-1000.0,0.00035616,10]
[419226087,1775025055513,-1000.0,0.00035616,10]
[419226088,1775025055524,-318.0,0.00035616,10]
[419226089,1775025055534,-326.89199663,0.00035616,30]
[419226090,1775025055545,-1263.0,0.00035699,2]
[419226091,1775025055555,-150.0,0.00035699,2]
[419226092,1775025055565,-1216.0,0.00035699,2]
[419226093,1775025055575,-925.0,0.00035699,2]
[419226094,1775025055584,-500.0,0.00035745,120]
[419226095,1775025055594,-250.0,0.00035771,39]
[419226096,1775025055603,-2809.0,0.0003578,11]
[419226097,1775025055613,-25182.35,0.000358,2]
[419226098,1775025055623,-7126.81,0.000358,30]
[419226099,1775025055635,-963.31646,0.000358,30]
[419226100,1775025055644,-1571.0,0.00035846,11]
[419226101,1775025055654,-1014.55,0.0003587,120]
[419226102,1775025055663,-9127.68,0.000359,30]
[419226103,1775025055673,-224.90834083,0.00035933,60]
[419226104,1775025055683,-403.10901148,0.00036,120]
[419226105,1775025055692,-616.22870763,0.00036,120]
[419226106,1775025055702,-268.17305255,0.00036,120]
[419226107,1775025055711,-1490.70499641,0.00036,120]
[419226108,1775025055720,-506.36666556,0.00036,120]
[419226109,1775025055730,-429.65546234,0.00036,120]
[419226110,1775025055740,-7730.48,0.00036,30]
[419226111,1775025055749,-1002.59589747,0.00036,7]
[419226112,1775025055758,-963.31646,0.00036,30]
[419226113,1775025055768,-3211.0548,0.00036,7]
[419226114,1775025055778,-613.56,0.00036013,10]
[419226115,1775025055788,-500.0,0.00036045,2]
[419226116,1775025055798,-500.0,0.00036045,2]
[419226117,1775025055807,-500.0,0.00036045,2]
[419226118,1775025055817,-500.0,0.00036045,2]
[419226119,1775025055827,-500.0,0.00036045,2]
[419226120,1775025055837,-500.0,0.00036045,2]
[419226121,1775025055847,-500.0,0.00036045,2]